bitfinex-derivatives/quotes_SOLF0:USTF0_20250821
["timestamp","ask_amount","ask_price","bid_price","bid_amount"]
[1755780683917,3.93127453,182.89,182.78,2.89]
[1755780684117,2.96,182.9,182.78,2.89]
[1755780684316,3.93112468,182.89,182.78,2.89]
[1755780684519,2.96,182.9,182.78,2.89]
[1755780684822,2.96,182.96,182.82,2.89]
[1755780685117,3.93244744,182.95,182.83,2.89]
[1755780685325,3.93244744,182.94,182.83,2.89]
[1755780685516,3.93244744,182.93,182.83,2.89]
[1755780685716,2.96,182.96,182.85,7.1475016]
[1755780685916,3.94019821,182.95,182.87,0.03663789]
[1755780686220,3.94019821,182.94,182.87,0.03663789]
[1755780686420,2.96,183.01,182.86,2.89]
[1755780686619,3.94692127,183.0,182.86,2.89]
[1755780686821,3.94692127,182.99,182.86,2.89]
[1755780687019,3.94692127,182.98,182.92,0.03660671]
[1755780687221,2.96,182.96,182.92,0.03660671]
[1755780687425,3.94692127,182.95,182.92,0.03660671]
[1755780687619,3.94692127,182.94,182.85,2.89]
[1755780687922,2.96,183.01,182.92,5.4673]
[1755780688225,3.9518044,183.0,182.9,2.89]
[1755780688419,3.9518044,182.99,182.97,5.4656]
[1755780688719,2.96,183.07,182.98,2.89]
[1755780689021,3.95739806,183.06,182.98,2.89]
[1755780689221,3.95739806,183.05,182.98,2.89]
[1755780689425,3.95739806,183.04,182.98,2.89]
[1755780689624,3.95739806,183.03,182.99,2.89]
[1755780689829,3.95739806,183.03,182.87,16.35]
[1755780689830,3.95739806,183.02,182.94,2.89]
[1755780690024,3.95739806,183.01,182.9,152.33]
[1755780690318,3.95739806,183.0,182.9,152.33]
[1755780690513,3.95739806,182.99,182.9,152.33]
[1755780690713,2.96,182.97,182.94,0.03745596]
[1755780690920,3.95831597,182.96,182.94,0.03745596]
[1755780691116,3.95831597,182.95,182.94,0.03745596]
[1755780691316,3.95831597,182.95,182.87,149.54]
[1755780691518,2.96,183.02,182.93,0.03606249]
[1755780691722,3.96174601,183.01,182.93,0.03606249]
[1755780691919,3.96174601,183.0,182.91,2.89]
[1755780692117,3.96174601,182.99,182.9,5.468]
[1755780692319,3.96174601,182.98,182.88,149.62]
[1755780692521,3.96174601,182.97,182.88,149.62]
[1755780692715,3.96174601,182.96,182.88,149.62]
[1755780692920,3.96174601,182.95,182.88,149.62]
[1755780693124,3.96602983,182.94,182.88,149.62]
[1755780693325,2.96,182.99,182.9,0.03684722]
[1755780693524,3.94289375,182.98,182.9,0.03684722]
[1755780693719,3.94289375,182.97,182.88,149.62]
[1755780693928,3.94289375,182.96,182.86,2.89]
[1755780694126,3.94289375,182.95,182.86,2.89]
[1755780694328,3.94289375,182.94,182.86,2.89]
[1755780694525,2.96,182.99,182.86,2.89]
[1755780694726,3.94777566,182.98,182.86,2.89]
[1755780695017,3.94777566,182.97,182.88,0.0365807]
[1755780695223,3.94777566,182.96,182.88,0.0365807]
[1755780695526,3.94777566,182.95,182.86,2.89]
[1755780695727,3.94777566,182.94,182.86,2.89]
[1755780695927,3.94777566,182.93,182.86,2.89]
[1755780696126,10.1075016,182.99,182.84,149.26]
[1755780696127,3.94777566,182.92,182.84,149.26]
[1755780696325,3.94777566,182.91,182.84,149.26]
[1755780696524,3.94777566,182.9,182.84,149.26]
[1755780696826,5.4675,182.92,182.85,5.4693]
[1755780697027,3.95149069,182.91,182.85,2.89]
[1755780697230,2.96,182.95,182.85,2.92744345]
[1755780697430,3.95191007,182.94,182.86,5.4689]
[1755780697625,3.95191007,182.93,182.85,2.92744345]
[1755780697819,3.95191007,182.92,182.82,367.44]
[1755780698026,3.95191007,182.91,182.82,516.56]
[1755780698323,3.95191007,182.9,182.82,516.56]
[1755780698530,3.95191007,182.89,182.82,522.0301]
[1755780698730,2.96,182.95,182.82,516.56]
[1755780698929,3.95152529,182.94,182.84,5.4697]
[1755780699131,3.95152529,182.93,182.82,516.56]
[1755780699332,3.95152529,182.92,182.87,0.03534289]
[1755780699532,7.1475016,182.96,182.87,0.03534289]
[1755780699533,2.96,182.89,182.87,0.03534289]
[1755780699735,6.91152529,182.88,182.87,0.03534289]
[1755780700436,6.91152529,182.88,182.79,148.88]
[1755780700630,6.91152529,182.88,182.79,154.351]
[1755780700631,5.4693,182.86,182.79,154.351]
[1755780700826,2.96,182.88,182.79,148.88]
[1755780701034,3.950713,182.87,182.79,148.88]
[1755780701230,3.950713,182.86,182.77,151.67]
[1755780701428,2.96,182.94,182.78,2.89]
[1755780701627,3.95120038,182.93,182.78,2.89]
[1755780701828,0.03785286,182.83,182.82,2.89]
[1755780702032,2.96,182.91,182.82,2.89]
[1755780702336,3.95129152,182.9,182.77,148.78]
[1755780702536,0.03987149,182.84,182.77,151.67]
[1755780702827,0.03987149,182.84,182.81,8.3605]
[1755780703133,0.03987149,182.84,182.81,2.89]
[1755780703430,0.03987149,182.84,182.74,7.1475016]
[1755780703635,0.03987149,182.84,182.83,2.89]
[1755780704028,0.03987149,182.84,182.83,8.3601]
[1755780704231,0.03987149,182.84,182.83,5.4701]
[1755780704534,0.03987149,182.84,182.8,5.4707]
[1755780704732,0.03987149,182.84,182.82,2.89]
[1755780705035,0.03987149,182.84,182.79,5.471]
[1755780705234,0.03987149,182.84,182.78,151.39]
[1755780706230,0.03987149,182.84,182.79,8.361]
[1755780706625,0.03987149,182.84,182.79,2.89]
[1755780707032,2.96,182.83,182.78,148.5]
[1755780707337,0.03987149,182.84,182.78,151.39]
[1755780707730,0.03987149,182.84,182.8,5.4707]
[1755780708029,0.03987149,182.84,182.78,148.5]
[1755780708238,0.03987149,182.84,182.79,8.3611]
[1755780708437,0.03987149,182.84,182.8,2.89]
[1755780708735,0.03987149,182.84,182.81,2.89]
[1755780708934,0.03987149,182.84,182.8,2.89]
[1755780709132,0.03987149,182.84,182.82,2.89]
[1755780709330,2.96,182.93,182.83,2.89]
[1755780709530,3.95515489,182.92,182.83,2.89]
[1755780709726,2.96,182.93,182.83,2.89]
[1755780709931,2.96,182.91,182.81,0.03532682]
[1755780710235,3.95514921,182.9,182.79,151.11]
[1755780710439,2.96,182.91,182.82,5.4702]
[1755780710637,3.95451413,182.9,182.83,0.03607893]
[1755780710838,2.96,182.91,182.83,0.03607893]
[1755780711035,3.95466065,182.9,182.83,5.50607893]
[1755780711237,2.96,182.91,182.83,0.03607893]
[1755780711837,2.96,182.91,182.84,5.4698]
[1755780712236,2.96,182.91,182.83,0.03607893]
[1755780712439,2.96,182.95,182.83,0.03607893]
[1755780712638,3.95507061,182.94,182.83,0.03607893]
[1755780712839,2.96,182.95,182.82,2.89]
[1755780713140,3.95503957,182.94,182.82,2.89]
[1755780713343,6.96503957,182.93,182.87,0.03656063]
[1755780713534,3.01,182.93,182.87,0.03656063]
[1755780713736,3.95591556,182.92,182.82,2.89]
[1755780713937,3.95591556,182.91,182.82,2.89]
[1755780714135,3.95591556,182.9,182.88,0.04107032]
[1755780714341,3.01,182.89,182.88,0.04107032]
[1755780715440,7.50801737,182.89,182.77,3.02]
[1755780715738,3.95801737,182.88,182.77,3.02]
[1755780716040,3.01,182.89,182.77,3.02]
[1755780716246,3.95761099,182.88,182.77,3.02]
[1755780716436,3.01,182.89,182.77,3.02]
[1755780716636,3.95731902,182.88,182.8,5.4708]
[1755780716837,0.04123122,182.84,182.77,3.02]
[1755780717144,0.04123122,182.84,182.83,5.4701]
[1755780717336,0.04123122,182.84,182.83,8.4901]
[1755780717839,0.04123122,182.84,182.79,4.34362609]
[1755780717840,0.04123122,182.84,182.8,3.02]
[1755780718842,0.04123122,182.84,182.79,4.34362609]
[1755780718843,0.04123122,182.84,182.81,8.4905]
[1755780719145,0.04123122,182.84,182.82,3.02]
[1755780719340,0.04123122,182.84,182.81,5.4705]
[1755780719542,0.04123122,182.84,182.77,150.84]
[1755780720037,0.04123122,182.84,182.77,3.02]
[1755780720838,0.04123122,182.84,182.81,3.02]
[1755780721039,0.04123122,182.84,182.82,5.4702]
[1755780721337,0.04123122,182.84,182.79,4.34362609]
[1755780721543,0.04123122,182.84,182.78,7.36362609]
[1755780723243,0.04123122,182.84,182.78,4.34362609]
[1755780723539,0.04123122,182.84,182.83,8.4901]
[1755780723747,3.01,182.93,182.83,3.02]
[1755780724047,3.98048222,182.92,182.87,3.02]
[1755780724246,3.01,182.93,182.87,3.02]
[1755780724545,3.01,182.93,182.88,8.4886]
[1755780724934,8.4773,182.93,182.88,3.02]
[1755780725139,3.01,182.93,182.89,0.04027464]
[1755780725839,3.05,182.97,182.89,0.04027464]
[1755780726039,3.981536,182.96,182.89,0.04027464]
[1755780726237,3.05,183.0,182.88,7.36362609]
[1755780726544,3.98149831,182.99,182.88,7.36362609]
[1755780726740,3.05,183.0,182.91,0.03838962]
[1755780726741,3.05,182.94,182.91,0.03838962]
[1755780726941,4.34362609,183.0,182.91,0.03838962]
[1755780727145,3.05,182.97,182.91,0.03838962]
[1755780727448,3.05,183.01,182.93,3.02]
[1755780727641,3.98215955,183.0,182.93,3.02]
[1755780727841,3.98215955,182.99,182.92,3.02]
[1755780728041,3.05,183.01,182.92,7.36362609]
[1755780728347,5.4642,183.03,182.96,5.466]
[1755780728548,3.9829989,183.02,182.95,0.03974691]
[1755780728840,5.465,183.0,182.95,8.4863]
[1755780729040,3.05,182.99,182.9,3.02]
[1755780729241,3.05,182.99,182.97,0.04097937]
[1755780729747,3.05,182.99,182.9,3.02]
[1755780729946,3.05,182.99,182.96,0.03755192]
[1755780730147,5.4644,183.03,182.96,8.52355192]
[1755780730347,3.98136941,183.02,182.96,8.52355192]
[1755780730538,3.05,183.04,182.96,3.02]
[1755780730846,3.05,183.02,182.91,7.36362609]
[1755780731046,4.34362609,183.05,182.97,0.03958702]
[1755780731047,3.05,183.0,182.97,0.03958702]
[1755780731244,3.05,182.99,182.93,5.4669]
[1755780731745,3.05,183.04,182.97,0.03899218]
[1755780731948,3.98065528,183.03,182.97,0.03899218]
[1755780732144,3.98065528,183.02,182.94,3.02]
[1755780732344,3.05,183.04,182.94,3.02]
[1755780732646,3.05,183.01,182.98,0.04076844]
[1755780732848,3.05,183.06,182.98,0.04076844]
[1755780733048,3.98025226,183.05,182.98,0.04076844]
[1755780733248,3.98025226,183.04,182.95,3.02]
[1755780733449,3.98025226,183.03,183.0,0.03634861]
[1755780733650,7.03025226,183.02,183.0,0.03634861]
[1755780733843,3.05,183.02,183.0,0.03634861]
[1755780734049,3.05,183.06,183.0,0.03634861]
[1755780734252,3.05,183.04,183.0,0.03634861]
[1755780734548,7.03049616,183.03,183.0,0.03634861]
[1755780734745,3.98049616,183.02,183.0,0.03634861]
[1755780734939,7.39362609,183.07,183.0,0.03634861]
[1755780735146,3.98068305,183.06,183.0,0.03634861]
[1755780735346,3.05,183.04,183.0,0.03634861]
[1755780735542,3.05,183.09,183.0,0.03634861]
[1755780735748,3.98060728,183.08,183.0,0.03634861]
[1755780735948,7.39362609,183.13,183.01,3.02]
[1755780736148,3.05,183.11,183.01,3.02]
[1755780736348,3.05,183.09,182.97,3.02]
[1755780736649,3.98050005,183.08,182.97,3.02]
[1755780736853,8.32412614,183.07,183.04,0.04109078]
[1755780737050,3.05,183.05,183.04,0.04109078]
[1755780737750,7.02210968,183.05,183.04,0.04109078]
[1755780738655,3.05,183.05,183.04,0.04109078]
[1755780739250,4.34362609,183.07,183.04,0.04109078]
[1755780739452,3.06,183.1,183.04,0.04109078]
[1755780739653,3.06,183.08,183.04,0.04109078]
[1755780739953,3.96868671,183.07,183.04,0.04109078]
[1755780740149,3.06,183.08,183.04,0.04109078]
[1755780740349,4.34362609,183.07,183.04,0.04109078]
[1755780740555,3.06,183.05,183.04,0.04109078]
[1755780740755,12.49000815,183.05,183.04,0.04109078]
[1755780741555,5.4652,183.0,182.92,3.02]
[1755780742160,3.06,183.02,182.92,3.02]
[1755780742559,5.4655,182.99,182.94,5.4666]
[1755780742762,4.34362609,183.03,182.88,7.43362609]
[1755780742763,2.91,182.98,182.88,7.43362609]
[1755780742961,2.91,182.98,182.91,5.4675]
[1755780743156,5.4659,182.97,182.91,5.4675]
[1755780743355,2.91,182.98,182.88,7.43362609]
[1755780743555,2.91,182.94,182.85,367.56]
[1755780744061,4.34362609,182.93,182.85,367.56]
[1755780744357,4.34362609,182.96,182.86,3.09]
[1755780744564,0.03683349,182.91,182.85,367.56]
[1755780744762,0.03683349,182.91,182.85,376.1194]
[1755780744959,0.03683349,182.91,182.85,370.65]
[1755780745557,0.03683349,182.91,182.86,3.09]
[1755780745756,0.03683349,182.91,182.87,3.09]
[1755780745958,367.32,183.07,182.89,3.09]
[1755780746164,4.34362609,183.03,182.89,3.09]
[1755780746362,5.4654,182.99,182.91,5.4675]
[1755780746557,4.34362609,183.03,182.92,3.09]
[1755780746758,3.96410622,183.02,182.92,3.09]
[1755780747052,2.91,183.04,182.92,3.09]
[1755780747253,7.25362609,183.09,182.95,3.09]
[1755780747458,3.96478199,183.08,182.95,3.12495659]
[1755780747654,3.96478199,183.07,182.95,3.12495659]
[1755780747863,2.91,183.05,182.95,3.09]
[1755780748260,4.34362609,183.08,182.95,3.09]
[1755780748561,3.96433174,183.07,182.95,3.09]
[1755780748765,4.34362609,183.08,182.95,3.09]
[1755780748956,3.964339,183.07,183.0,0.03701643]
[1755780749256,2.91,183.01,183.0,0.03701643]
[1755780749664,2.91,183.01,182.9,3.09]
[1755780750060,5.4651,183.0,182.9,3.09]
[1755780750364,2.91,183.01,182.94,0.03658616]
[1755780750565,5.4656,182.99,182.94,0.03658616]
[1755780750863,2.91,182.98,182.94,0.03658616]
[1755780751062,5.4665,182.96,182.94,0.03658616]
[1755780751265,8.3765,182.96,182.9,3.09]
[1755780751565,4.34362609,183.0,182.9,3.09]
[1755780751566,7.25362609,183.0,182.9,3.09]
[1755780751756,7.25362609,183.0,182.93,0.03621106]
[1755780751961,4.34362609,183.03,182.94,3.09]
[1755780752859,2.91,183.05,182.97,0.03763973]
[1755780753065,2.91,183.03,182.97,0.03763973]
[1755780753263,3.96622706,183.02,182.97,0.03763973]
[1755780753456,5.4653,183.0,182.97,0.03763973]
[1755780753664,2.91,183.01,182.97,0.03763973]
[1755780753859,2.91,182.99,182.97,0.03763973]
[1755780754060,5.4656,182.98,182.97,0.03763973]
[1755780754855,5.4654,182.99,182.97,0.03763973]
[1755780755054,2.91,182.98,182.97,0.03763973]
[1755780755460,12.43905572,182.98,182.97,0.03763973]
[1755780756260,8.3756,182.98,182.97,0.03763973]
[1755780756461,12.44011208,182.98,182.97,0.03763973]
[1755780759566,9.53011208,182.98,182.97,0.03763973]
[1755780760664,4.06451208,182.98,182.97,0.03763973]
[1755780760861,2.91,183.02,182.97,0.03763973]
[1755780761064,4.06808472,183.01,182.97,3.12763973]
[1755780761259,7.25362609,183.05,182.97,3.12763973]
[1755780761469,4.06900574,183.04,182.97,8.59343973]
[1755780761667,4.06900574,183.03,182.97,8.59343973]
[1755780761871,4.06900574,183.02,182.99,3.09]
[1755780762064,2.91,183.05,182.99,3.09]
[1755780762369,4.06971831,183.04,182.99,3.09]
[1755780762570,4.06971831,183.03,182.99,3.09]
[1755780762770,4.06971831,183.02,182.99,3.09]
[1755780762968,2.91,183.05,182.99,3.09]
[1755780763164,2.91,183.03,182.97,0.03763973]
[1755780763369,2.91,183.01,182.97,0.03763973]
[1755780763571,4.0696963,183.0,182.92,3.09]
[1755780764071,5.4656,182.98,182.94,8.5566]
[1755780764367,5.4656,182.98,182.94,3.09]
[1755780764967,5.4656,182.98,182.94,3.12524397]
[1755780765268,5.466,182.97,182.94,0.03524397]
[1755780765669,2.91,183.01,182.94,0.03524397]
[1755780765869,4.07229784,183.0,182.94,3.12524397]
[1755780766172,6.98229784,182.99,182.94,3.12524397]
[1755780766369,4.07229784,182.98,182.94,3.12524397]
[1755780767074,9.53829784,182.98,182.94,3.12524397]
[1755780767372,2.91,183.05,182.94,3.12524397]
[1755780767572,4.07769844,183.04,182.94,3.12524397]
[1755780767776,4.07769844,183.03,182.96,5.466]
[1755780767969,4.07769844,183.02,182.94,3.09]
[1755780768170,4.07769844,183.01,182.98,3.09]
[1755780768478,2.91,183.05,182.98,3.09]
[1755780768767,5.4644,183.03,182.98,3.09]
[1755780768968,4.07944097,183.02,182.98,3.09]
[1755780769172,4.07944097,183.01,182.98,3.09]
[1755780769375,8.3742,183.03,182.99,3.09]
[1755780769376,4.07944097,183.0,182.99,3.09]
[1755780769571,4.07944097,183.02,182.99,3.09]
[1755780769772,9.54394097,183.02,182.99,3.09]
[1755780770075,4.07944097,183.01,182.97,0.03695508]
[1755780770273,2.91,183.05,182.97,0.03695508]
[1755780770274,4.07944097,183.0,182.98,3.09]
[1755780770475,5.4642,183.04,182.98,8.5555]
[1755780770674,4.08231557,183.03,182.93,3.09]
[1755780770875,4.08231557,183.02,182.97,0.03665472]
[1755780771075,4.08231557,183.01,182.97,0.03665472]
[1755780771277,4.08231557,183.0,182.97,3.09]
[1755780771470,5.4641,183.04,182.97,3.09]
[1755780771674,4.08252141,183.03,182.97,3.09]
[1755780771873,4.08252141,183.02,182.97,8.5558]
[1755780772171,4.08252141,183.01,182.98,3.09]
[1755780772373,5.4644,183.03,182.98,3.09]
[1755780772374,4.08252141,183.0,182.98,0.03674683]
[1755780772574,4.34362609,183.05,182.98,0.03674683]
[1755780772777,6.88289302,183.04,182.98,0.03674683]
[1755780772975,4.08289302,183.03,182.98,0.03674683]
[1755780773278,2.8,183.0,182.98,0.03674683]
[1755780773480,4.08289302,182.99,182.98,0.03674683]
[1755780776188,2.8,183.02,182.98,0.03674683]
[1755780776383,4.08290035,183.01,182.98,0.03674683]
[1755780776679,4.08290035,183.0,182.98,0.03674683]
[1755780776885,2.8,183.01,182.98,0.03674683]
[1755780777080,4.08352927,183.0,182.98,0.03674683]
[1755780777286,4.08352927,182.99,182.98,0.03674683]
[1755780779280,7.14362609,183.05,182.98,0.03674683]
[1755780779484,4.08288881,183.04,182.98,0.03674683]
[1755780779684,2.8,183.01,182.98,0.03674683]
[1755780779888,4.08288881,183.0,182.98,0.03674683]
[1755780780088,2.8,183.01,182.98,0.03674683]
[1755780780289,8.2638,183.05,183.0,5.465]
[1755780780482,6.88310991,183.04,182.98,0.03674683]
[1755780780680,4.08310991,183.03,182.98,3.02674683]
[1755780780988,6.01712421,183.1,182.98,3.02674683]
[1755780780989,2.8,183.07,182.98,3.02674683]
[1755780781188,4.08445734,183.06,182.98,3.02674683]
[1755780781384,4.08445734,183.05,182.98,2.99]
[1755780781585,5.4628,183.08,182.98,2.99]
[1755780781788,4.08361883,183.07,182.99,4.34362609]
[1755780781988,5.4628,183.08,182.99,4.34362609]
[1755780781989,4.08361883,183.06,182.99,4.34362609]
[1755780782191,4.08361883,183.05,183.04,5.4639]
[1755780782488,2.8,183.11,183.02,4.34362609]
[1755780782685,4.08345555,183.1,183.02,4.34362609]
[1755780782991,4.08345555,183.09,183.01,2.99]
[1755780783194,2.8,183.11,183.01,2.99]
[1755780783195,4.08345555,183.08,183.02,4.34362609]
[1755780783392,2.8,183.11,183.02,4.34362609]
[1755780783696,4.0785282,183.1,183.03,3.02704665]
[1755780783896,4.0785282,183.09,183.03,3.02704665]
[1755780784094,4.0785282,183.08,183.03,3.02704665]
[1755780784295,2.8,183.11,183.03,3.02704665]
[1755780784594,6.87690844,183.1,183.03,3.02704665]
[1755780784795,4.07690844,183.09,183.05,4.34362609]
[1755780785099,2.8,183.14,183.09,8.4522]
[1755780785289,4.07382895,183.13,183.09,8.4522]
[1755780785486,4.07382895,183.12,183.1,5.4619]
[1755780785698,2.8,183.14,183.09,2.99]
[1755780785891,4.07343585,183.13,183.09,2.99]
[1755780786092,2.8,183.14,183.1,5.462]
[1755780786289,4.0706905,183.13,183.1,5.462]
[1755780786493,2.8,183.14,183.1,5.462]
[1755780786688,4.07088167,183.13,183.09,0.03769483]
[1755780786897,2.8,183.11,183.09,0.03769483]
[1755780787095,8.2609,183.15,183.08,5.4627]
[1755780787300,4.07077749,183.14,183.06,4.34362609]
[1755780787493,4.07077749,183.13,183.06,4.34362609]
[1755780787694,2.8,183.15,183.06,4.34362609]
[1755780787890,2.8,183.18,183.08,0.03807383]
[1755780788097,4.06844399,183.17,183.08,0.03807383]
[1755780788297,4.06844399,183.16,183.08,0.03807383]
[1755780788497,2.8,183.18,183.08,0.03807383]
[1755780788800,5.4595,183.19,183.11,2.99]
[1755780788995,4.06598929,183.18,183.11,2.99]
[1755780789294,5.4595,183.19,183.13,5.4612]
[1755780789598,2.8,183.21,183.13,0.03521601]
[1755780789896,2.8,183.19,183.13,0.03521601]
[1755780790198,2.8,183.16,183.13,0.03521601]
[1755780790401,2.8,183.14,183.13,0.03521601]
[1755780790695,2.8,183.2,183.13,0.03521601]
[1755780790902,2.8,183.18,183.13,0.03521601]
[1755780791107,5.4609,183.14,183.13,0.03521601]
[1755780791402,8.2609,183.14,183.13,0.03521601]
[1755780792094,2.8,183.14,183.13,0.03521601]
[1755780792497,8.2609,183.14,183.13,0.03521601]
[1755780792801,6.85926258,183.14,183.03,2.99]
[1755780793003,5.462,183.11,183.06,5.4631]
[1755780793203,8.262,183.11,183.06,5.4631]
[1755780793392,2.8,183.11,183.03,2.99]
[1755780793797,2.8,183.11,183.02,2.99]
[1755780793996,0.03873265,183.09,183.02,2.99]
[1755780794203,0.03873265,183.09,183.08,8.4527]
[1755780794602,2.8,183.19,183.08,3.53]
[1755780794801,4.05742296,183.18,183.1,4.34362609]
[1755780795103,2.8,183.19,183.1,7.33362609]
[1755780795902,2.8,183.19,183.05,2.99]
[1755780795903,2.8,183.17,183.05,2.99]
[1755780796200,2.8,183.15,183.13,0.03643753]
[1755780796404,2.8,183.19,183.11,5.4617]
[1755780796704,2.8,183.19,183.08,2.99]
[1755780796705,4.05444858,183.18,183.12,0.03864525]
[1755780796898,2.8,183.19,183.12,0.03864525]
[1755780797097,4.05445514,183.18,183.12,0.03864525]
[1755780797301,2.8,183.19,183.12,0.03864525]
[1755780797495,4.05308641,183.18,183.12,0.03864525]
[1755780797806,2.8,183.19,183.12,0.03864525]
[1755780798703,4.05147482,183.18,183.12,0.03864525]
[1755780798906,2.8,183.19,183.12,0.03864525]
[1755780799105,2.8,183.17,183.12,0.03864525]
[1755780799304,4.34362609,183.22,183.12,0.03864525]
[1755780799509,6.85080793,183.21,183.12,0.03864525]
[1755780799709,2.8,183.19,183.12,0.03864525]
[1755780800005,4.05080793,183.18,183.12,0.03864525]
[1755780800207,2.8,183.16,183.12,0.03864525]
[1755780800405,2.8,183.15,183.12,0.03864525]
[1755780800708,2.8,183.18,183.12,0.03864525]
[1755780800907,2.8,183.16,183.12,0.03864525]
[1755780801101,2.8,183.18,183.07,2.99]
[1755780801304,4.05052988,183.17,183.07,2.99]
[1755780801501,2.8,183.13,183.12,0.04012575]
[1755780801903,2.8,183.12,183.02,2.99]
[1755780802209,2.8,183.1,182.99,2.99]
[1755780802504,2.96,183.06,182.99,2.99]
[1755780802704,4.34362609,183.1,182.99,2.99]
[1755780802908,4.0496528,183.09,182.99,2.99]
[1755780803108,7.30362609,183.1,182.99,2.99]
[1755780803302,0.04184476,183.06,182.99,2.99]
[1755780803704,0.04184476,183.06,182.99,7.33362609]
[1755780803908,0.04184476,183.06,183.05,5.4636]
[1755780804109,0.04184476,183.06,183.05,8.4436]
[1755780804610,0.04184476,183.06,183.05,8.9836]
[1755780804907,0.04184476,183.06,183.05,8.4436]
[1755780805404,0.04184476,183.06,183.05,8.9836]
[1755780805813,2.96,183.18,183.09,2.98]
[1755780806109,4.05402906,183.17,183.09,2.98]
[1755780806303,4.34362609,183.22,183.04,143.87817574]
[1755780806304,2.96,183.15,183.05,2.98]
[1755780806503,4.05402906,183.14,183.05,2.98]
[1755780806706,5.4617,183.12,183.07,5.4629]
[1755780806909,8.4217,183.12,183.07,5.4629]
[1755780807108,8.4217,183.12,183.08,0.03539786]
[1755780807405,2.96,183.11,183.08,0.03539786]
[1755780807608,4.34362609,183.16,183.08,0.03539786]
[1755780807811,4.0537365,183.15,183.08,0.03539786]
[1755780808011,4.0537365,183.14,183.08,0.03539786]
[1755780808208,7.30362609,183.16,183.08,0.03539786]
[1755780808513,4.05434848,183.15,183.08,0.03539786]
[1755780808716,2.96,183.12,183.08,0.03539786]
[1755780809212,4.34362609,183.16,183.08,0.03539786]
[1755780809513,7.01635877,183.15,183.08,0.03539786]
[1755780809710,4.05635877,183.14,183.08,0.03539786]
[1755780809907,2.96,183.12,183.08,0.03539786]
[1755780810108,4.34362609,183.16,183.08,0.03539786]
[1755780810307,7.01742048,183.15,183.08,0.03539786]
[1755780810507,2.96,183.12,183.08,0.03539786]
[1755780811415,2.96,183.12,183.08,5.49789786]
[1755780811706,2.96,183.12,183.08,0.03539786]
[1755780812208,2.96,183.12,183.09,5.4622]
[1755780812808,2.96,183.12,183.08,5.49799786]
[1755780813609,2.96,183.12,183.09,5.4623]
[1755780813811,2.96,183.12,183.08,0.03539786]
[1755780814608,4.34362609,183.16,183.08,0.03539786]
[1755780814609,4.05542295,183.11,183.08,0.03539786]
[1755780814806,2.96,183.11,183.08,0.03539786]
[1755780815806,4.34362609,183.16,183.08,0.03539786]
[1755780816012,4.34362609,183.13,183.08,0.03539786]
[1755780816208,7.0169687,183.12,183.08,0.03539786]
[1755780816408,2.96,183.1,183.08,0.03539786]
[1755780816607,7.0169687,183.09,183.08,0.03539786]
[1755780817012,4.0569687,183.09,183.08,0.03539786]
[1755780817203,4.34362609,183.13,183.08,0.03539786]
[1755780817408,2.96,183.1,183.08,0.03539786]
[1755780817610,4.06181723,183.09,183.08,0.03539786]
[1755780817810,2.96,183.11,183.08,0.03539786]
[1755780818009,7.02191213,183.1,183.08,0.03539786]
[1755780818208,4.06354705,183.09,183.08,0.03539786]
[1755780818416,2.96,183.14,183.08,0.03539786]
[1755780818709,7.02405955,183.13,183.08,0.03539786]
[1755780819011,4.06405955,183.12,183.09,5.4623]
[1755780819206,4.06405955,183.12,183.09,3.01840552]
[1755780819403,2.96,183.16,183.1,2.98]
[1755780819710,4.06562159,183.15,183.09,0.03840552]
[1755780819904,4.06562159,183.14,183.06,7.32362609]
[1755780820112,4.06562159,183.13,183.06,7.32362609]
[1755780820308,2.96,183.16,183.1,0.03815793]